[Event "Mitropa Cup 2023 Open selection"]
[Site "Mali Losinj, Croatia"]
[Date "2023.04.11"]
[Round "1.17"]
[White "Dotzer, Lukas"]
[Black "Moroni, Luca Jr"]
[Result "1-0"]
[TimeControl "90 min + 30 min after 40 moves + 30 sec increment from move 1"]
[WhiteElo "2416"]
[BlackElo "2565"]

1. e4 {[%emt 00:00:36]} c5 {[%clk 01:30:21]} {[%emt 00:00:06]} 2. Nf3 {[%clk
01:31:23]} {[%emt 00:00:05]} e6 {[%clk 01:30:46]} {[%emt 00:00:04]} 3. d4
{[%clk 01:31:46]} {[%emt 00:00:07]} cxd4 {[%clk 01:31:10]} {[%emt 00:00:06]} 4.
Nxd4 {[%clk 01:32:11]} {[%emt 00:00:05]} Nc6 {[%clk 01:31:36]} {[%emt
00:00:04]} 5. Nc3 {[%clk 01:32:33]} {[%emt 00:00:09]} a6 {[%clk 01:32:00]}
{[%emt 00:00:05]} 6. g3 {[%clk 01:26:55]} {[%emt 00:06:08]} h5 {[%clk
01:29:36]} {[%emt 00:02:54]} 7. Bg2 {[%clk 01:21:21]} {[%emt 00:06:04]} Nge7
{[%clk 01:20:19]} {[%emt 00:09:47]} 8. Bf4 {[%clk 01:13:14]} {[%emt 00:08:38]}
d6 {[%clk 01:06:49]} {[%emt 00:13:59]} 9. Nxc6 {[%clk 01:10:19]} {[%emt
00:03:26]} Nxc6 {[%clk 01:05:10]} {[%emt 00:02:08]} 10. Qd2 {[%clk 01:02:37]}
{[%emt 00:08:13]} Qc7 {[%clk 01:00:18]} {[%emt 00:05:21]} 11. O-O-O {[%clk
00:56:59]} {[%emt 00:06:09]} Ne5 {[%clk 00:59:24]} {[%emt 00:01:23]} 12. Bg5
{[%clk 00:52:57]} {[%emt 00:04:32]} b5 {[%clk 00:54:59]} {[%emt 00:04:56]} 13.
Rhe1 {[%clk 00:47:23]} {[%emt 00:06:04]} f6 {[%clk 00:49:50]} {[%emt 00:05:38]}
14. Be3 {[%clk 00:43:16]} {[%emt 00:04:37]} Nc4 {[%clk 00:44:11]} {[%emt
00:06:09]} 15. Qd3 {[%clk 00:38:53]} {[%emt 00:04:54]} b4 {[%clk 00:40:09]}
{[%emt 00:04:32]} 16. Ne2 {[%clk 00:36:47]} {[%emt 00:02:35]} e5 {[%clk
00:36:45]} {[%emt 00:03:54]} 17. Kb1 {[%clk 00:26:11]} {[%emt 00:11:06]} Nxe3
{[%clk 00:32:17]} {[%emt 00:04:57]} 18. Qxe3 {[%clk 00:25:38]} {[%emt
00:01:04]} Be6 {[%clk 00:32:22]} {[%emt 00:00:25]} 19. Rc1 {[%clk 00:20:08]}
{[%emt 00:06:00]} a5 {[%clk 00:28:46]} {[%emt 00:04:07]} 20. c4 {[%emt
00:02:24]} g6 {[%clk 00:18:38]} {[%emt 00:10:38]} 21. f4 {[%clk 00:12:59]} Bh6
{[%clk 00:16:23]} {[%emt 00:08:30]} 22. Ng1 {[%clk 00:09:43]} Qf7 {[%clk
00:11:19]} {[%emt 00:09:19]} 23. Qd3 {[%clk 00:06:04]} O-O {[%clk 00:11:19]} 24.
f5 {[%clk 00:04:40]} {[%emt 00:08:24]} Bd7 {[%clk 00:08:19]} {[%emt 00:01:39]}
25. fxg6 {[%clk 00:04:18]} {[%emt 00:00:53]} Qxg6 {[%clk 00:08:39]} {[%emt
00:00:10]} 26. Rcd1 {[%clk 00:03:56]} {[%emt 00:00:52]} Be6 {[%clk 00:07:25]}
{[%emt 00:01:44]} 27. Bh3 {[%clk 00:03:32]} {[%emt 00:00:54]} Bf7 {[%clk
00:05:01]} {[%emt 00:02:55]} 28. Bf5 {[%clk 00:03:26]} {[%emt 00:00:34]} Qg7
{[%clk 00:04:31]} {[%emt 00:01:00]} 29. Nf3 {[%clk 00:01:24]} {[%emt 00:02:33]}
Rfd8 {[%clk 00:03:51]} {[%emt 00:01:09]} 30. c5 {[%clk 00:00:48]} {[%emt
00:01:07]} Kh8 {[%clk 00:02:13]} {[%emt 00:02:08]} 31. cxd6 {[%clk 00:00:54]}
{[%emt 00:00:24]} Qg8 {[%clk 00:02:33]} {[%emt 00:00:09]} 32. Ka1 {[%clk
00:00:35]} {[%emt 00:00:49]} Bxa2 {[%clk 00:02:20]} {[%emt 00:00:43]} 33. d7
{[%clk 00:00:40]} {[%emt 00:00:25]} Qb3 {[%clk 00:00:34]} {[%emt 00:02:16]} 34.
Qd6 {[%clk 00:00:37]} {[%emt 00:00:33]} Qa4 {[%clk 00:00:39]} {[%emt 00:00:26]}
35. Qxf6+ {[%clk 00:00:36]} {[%emt 00:00:30]} Bg7 {[%clk 00:01:08]} 36. Qg5
{[%clk 00:00:41]} {[%emt 00:00:26]} Be6+ {[%clk 00:00:42]} {[%emt 00:00:57]} 37.
Kb1 {[%clk 00:01:10]} {[%emt 00:00:01]} Qa2+ {[%clk 00:01:07]} {[%emt
00:00:05]} 38. Kc2 {[%clk 00:00:36]} {[%emt 00:01:04]} Qb3+ {[%clk 00:00:59]}
{[%emt 00:00:37]} 39. Kb1 {[%clk 00:00:47]} {[%emt 00:00:19]} Qa2+ {[%clk
00:00:50]} {[%emt 00:00:39]} 40. Kc2 {[%clk 00:30:40]} {[%emt 00:00:37]} Rac8+
{[%clk 00:30:47]} {[%emt 00:00:33]} 41. Kd3 {[%clk 00:26:38]} {[%emt 00:04:32]}
Rxd7+ {[%clk 00:22:10]} {[%emt 00:09:07]} 42. Ke2 {[%clk 00:25:00]} {[%emt
00:02:08]} Qxb2+ {[%clk 00:18:29]} {[%emt 00:04:11]} 43. Kf1 {[%clk 00:23:50]}
{[%emt 00:01:40]} Bxf5 {[%clk 00:11:28]} {[%emt 00:07:31]} 44. Qxh5+ {[%clk
00:18:28]} {[%emt 00:05:52]} Kg8 {[%clk 00:09:41]} {[%emt 00:02:17]} 45. Qxf5
{[%clk 00:18:08]} {[%emt 00:00:50]} Rdd8 {[%clk 00:07:15]} {[%emt 00:02:56]} 46.
Qe6+ {[%clk 00:17:27]} {[%emt 00:01:11]} Kh8 {[%clk 00:07:37]} {[%emt
00:00:08]} 47. Qh3+ {[%clk 00:16:29]} {[%emt 00:01:28]} Kg8 {[%clk 00:08:06]}
{[%emt 00:00:01]} 48. Ng5 {[%clk 00:10:56]} {[%emt 00:06:03]} Qb3 {[%clk
00:06:51]} {[%emt 00:01:45]} 49. Rd5 {[%clk 00:10:03]} {[%emt 00:01:23]} Rf8+
{[%clk 00:06:05]} {[%emt 00:01:16]} 50. Kg2 {[%clk 00:09:02]} {[%emt 00:01:31]}
Qc2+ {[%clk 00:03:06]} {[%emt 00:03:29]} 51. Kh1 {[%clk 00:09:21]} {[%emt
00:00:12]} Rf6 {[%clk 00:02:53]} {[%emt 00:00:42]} 52. Qh7+ {[%clk 00:09:14]}
{[%emt 00:00:37]} Kf8 {[%clk 00:03:22]} {[%emt 00:00:01]} 53. Rd7 {[%clk
00:09:18]} {[%emt 00:00:27]} 1-0

[Event "Mitropa Cup 2023 Open selection"]
[Site "Mali Losinj, Croatia"]
[Date "2023.04.11"]
[Round "1.18"]
[White "Sonis, Francesco"]
[Black "Gschiel, Alexander"]
[Result "1-0"]
[TimeControl "90 min + 30 min after 40 moves + 30 sec increment from move 1"]
[WhiteElo "2554"]
[BlackElo "2297"]

1. Nf3 {[%clk 01:30:34]} {[%emt 00:00:26]} Nf6 {[%clk 01:30:47]} {[%emt
00:00:14]} 2. c4 {[%clk 01:30:47]} {[%emt 00:00:17]} e6 {[%clk 01:31:08]}
{[%emt 00:00:09]} 3. Nc3 {[%clk 01:31:02]} {[%emt 00:00:15]} d5 {[%clk
01:31:21]} {[%emt 00:00:17]} 4. e3 {[%clk 01:31:28]} {[%emt 00:00:04]} Be7
{[%clk 01:31:01]} {[%emt 00:00:49]} 5. b3 {[%clk 01:31:53]} {[%emt 00:00:05]}
O-O {[%clk 01:30:48]} {[%emt 00:00:43]} 6. Bb2 {[%clk 01:32:19]} {[%emt
00:00:04]} b6 {[%clk 01:30:29]} {[%emt 00:00:49]} 7. cxd5 {[%clk 01:32:42]}
{[%emt 00:00:07]} exd5 {[%clk 01:29:51]} {[%emt 00:01:09]} 8. g3 {[%clk
01:33:06]} {[%emt 00:00:06]} c5 {[%clk 01:27:24]} {[%emt 00:02:56]} 9. Bg2
{[%clk 01:29:52]} {[%emt 00:03:44]} Nc6 {[%clk 01:22:58]} {[%emt 00:04:56]} 10.
O-O {[%clk 01:27:10]} {[%emt 00:03:13]} Ba6 {[%clk 01:17:18]} {[%emt 00:06:10]}
11. d3 {[%clk 01:25:42]} {[%emt 00:01:57]} Rc8 {[%clk 01:11:49]} {[%emt
00:05:59]} 12. Ne2 {[%clk 01:18:11]} {[%emt 00:08:02]} Nb4 {[%clk 01:07:31]}
{[%emt 00:04:47]} 13. Ne5 {[%clk 01:06:01]} {[%emt 00:12:39]} Bd6 {[%clk
00:58:53]} {[%emt 00:09:09]} 14. Nf4 {[%clk 01:03:57]} {[%emt 00:02:34]} d4
{[%clk 00:47:09]} {[%emt 00:12:14]} 15. a3 {[%clk 00:58:35]} {[%emt 00:05:52]}
Bxe5 {[%clk 00:41:24]} {[%emt 00:06:16]} 16. axb4 {[%clk 00:58:57]} {[%emt
00:00:07]} Bb5 {[%clk 00:41:48]} {[%emt 00:00:06]} 17. bxc5 {[%clk 00:53:01]}
{[%emt 00:06:26]} Rxc5 {[%clk 00:32:08]} {[%emt 00:10:10]} 18. b4 {[%clk
00:43:32]} {[%emt 00:09:59]} Rc7 {[%clk 00:24:49]} {[%emt 00:07:50]} 19. Ne2
{[%clk 00:43:20]} {[%emt 00:00:42]} Nd5 {[%clk 00:24:46]} {[%emt 00:00:33]} 20.
Bxd4 {[%clk 00:42:06]} {[%emt 00:01:43]} Re8 {[%clk 00:22:40]} {[%emt
00:02:36]} 21. Qb3 {[%clk 00:41:03]} {[%emt 00:01:32]} Nf6 {[%clk 00:21:12]}
{[%emt 00:01:59]} 22. Bxe5 {[%clk 00:40:39]} {[%emt 00:00:54]} Rxe5 {[%clk
00:21:41]} {[%emt 00:00:02]} 23. Nd4 {[%clk 00:41:02]} {[%emt 00:00:07]} Be8
{[%clk 00:21:27]} {[%emt 00:00:43]} 24. b5 {[%clk 00:38:22]} {[%emt 00:03:10]}
Nd5 {[%clk 00:19:50]} {[%emt 00:02:08]} 25. Rac1 {[%clk 00:34:50]} {[%emt
00:04:02]} h5 {[%clk 00:17:35]} {[%emt 00:02:45]} 26. Nc6 {[%clk 00:31:14]}
{[%emt 00:04:06]} Bxc6 {[%clk 00:17:55]} {[%emt 00:00:10]} 27. bxc6 {[%clk
00:31:40]} {[%emt 00:00:04]} h4 {[%clk 00:16:58]} {[%emt 00:01:28]} 28. d4
{[%clk 00:31:01]} {[%emt 00:01:07]} Rh5 {[%clk 00:15:32]} {[%emt 00:01:57]} 29.
g4 {[%clk 00:24:58]} {[%emt 00:06:33]} Rg5 {[%clk 00:14:27]} {[%emt 00:01:35]}
30. h3 {[%clk 00:25:14]} {[%emt 00:00:14]} Nf6 {[%clk 00:14:52]} {[%emt
00:00:05]} 31. Rfd1 {[%clk 00:24:53]} {[%emt 00:00:50]} Nxg4 {[%clk 00:13:37]}
{[%emt 00:01:46]} 32. hxg4 {[%clk 00:24:16]} {[%emt 00:01:08]} Rxg4 {[%clk
00:14:06]} {[%emt 00:00:01]} 33. Kf1 {[%clk 00:23:59]} {[%emt 00:00:46]} Qf6
{[%clk 00:09:43]} {[%emt 00:04:54]} 34. Qd5 {[%clk 00:23:03]} {[%emt 00:01:26]}
Rg5 {[%clk 00:09:38]} {[%emt 00:00:36]} 35. Qe4 {[%clk 00:23:18]} {[%emt
00:00:14]} Qh6 {[%clk 00:06:27]} {[%emt 00:03:41]} 36. Bh3 {[%clk 00:20:42]}
{[%emt 00:03:05]} Qf6 {[%clk 00:04:41]} {[%emt 00:02:17]} 37. d5 {[%emt
00:02:40]} Rg3 {[%clk 00:04:12]} 38. Bf5 {[%clk 00:19:43]} {[%emt 00:00:15]}
1-0

[Event "Mitropa Cup 2023 Open selection"]
[Site "Mali Losinj, Croatia"]
[Date "2023.04.11"]
[Round "1.19"]
[White "Kristoferitsch, Daniel"]
[Black "Lodici, Lorenzo"]
[Result "0-1"]
[TimeControl "90 min + 30 min after 40 moves + 30 sec increment from move 1"]
[WhiteElo "2254"]
[BlackElo "2524"]

1. d4 {[%clk 01:30:54]} {[%emt 00:00:05]} e6 {[%clk 01:30:37]} {[%emt
00:00:24]} 2. c4 {[%clk 01:31:14]} {[%emt 00:00:09]} b6 {[%clk 01:31:03]}
{[%emt 00:00:06]} 3. Nc3 {[%clk 01:27:30]} {[%emt 00:04:13]} Bb4 {[%clk
01:31:17]} {[%emt 00:00:16]} 4. e4 {[%clk 01:19:36]} {[%emt 00:08:24]} Bb7
{[%clk 01:31:24]} {[%emt 00:00:23]} 5. Qc2 {[%clk 01:19:59]} {[%emt 00:00:06]}
Qh4 {[%clk 01:29:22]} {[%emt 00:02:33]} 6. d5 {[%clk 01:17:40]} {[%emt
00:02:48]} f5 {[%clk 01:27:29]} {[%emt 00:02:23]} 7. exf5 {[%clk 00:58:55]}
{[%emt 00:19:15]} exd5 {[%clk 01:25:34]} {[%emt 00:02:26]} 8. cxd5 {[%clk
00:57:25]} {[%emt 00:01:59]} Nf6 {[%clk 01:22:23]} {[%emt 00:03:41]} 9. Bd2
{[%clk 00:53:05]} {[%emt 00:04:51]} O-O {[%clk 01:16:04]} {[%emt 00:06:47]} 10.
Nf3 {[%clk 00:51:40]} {[%emt 00:01:56]} Qh5 {[%clk 01:05:03]} {[%emt 00:11:32]}
11. O-O-O {[%clk 00:49:27]} {[%emt 00:02:43]} Kh8 {[%clk 01:01:21]} {[%emt
00:04:12]} 12. Bc4 {[%clk 00:40:58]} {[%emt 00:08:59]} c6 {[%clk 00:53:50]}
{[%emt 00:08:00]} 13. h3 {[%clk 00:34:56]} {[%emt 00:06:32]} cxd5 {[%clk
00:50:25]} {[%emt 00:03:55]} 14. g4 {[%clk 00:35:20]} {[%emt 00:00:06]} Qf7
{[%clk 00:43:32]} {[%emt 00:07:23]} 15. Bb3 {[%clk 00:34:13]} {[%emt 00:01:37]}
Na6 {[%clk 00:41:26]} {[%emt 00:02:36]} 16. a3 {[%clk 00:33:21]} {[%emt
00:01:23]} Bxc3 {[%clk 00:37:30]} {[%emt 00:04:25]} 17. Bxc3 {[%clk 00:30:28]}
{[%emt 00:03:23]} Rac8 {[%clk 00:37:31]} {[%emt 00:00:29]} 18. Nd4 {[%clk
00:29:19]} {[%emt 00:01:39]} Nc5 {[%clk 00:34:36]} {[%emt 00:03:26]} 19. f3
{[%clk 00:29:04]} {[%emt 00:00:45]} Ba6 {[%clk 00:32:11]} {[%emt 00:02:54]} 20.
Ba2 {[%clk 00:26:47]} {[%emt 00:02:47]} Bc4 {[%clk 00:30:25]} {[%emt 00:02:16]}
21. Bb1 {[%clk 00:26:39]} {[%emt 00:00:38]} b5 {[%clk 00:29:54]} {[%emt
00:01:01]} 22. g5 {[%clk 00:21:58]} {[%emt 00:05:11]} Nh5 {[%clk 00:26:53]}
{[%emt 00:03:30]} 23. Qf2 {[%clk 00:19:05]} {[%emt 00:03:24]} Nf4 {[%clk
00:24:12]} {[%emt 00:03:10]} 24. Qh4 {[%clk 00:17:04]} {[%emt 00:02:32]} Ne2+
{[%clk 00:19:21]} {[%emt 00:05:22]} 25. Kd2 {[%clk 00:05:48]} {[%emt 00:13:38]}
Nxd4 {[%clk 00:21:31]} {[%emt 00:00:17]} 26. Bxd4 {[%clk 00:06:17]} {[%emt
00:00:01]} Nb3+ {[%clk 00:21:10]} {[%emt 00:00:51]} 27. Ke3 {[%clk 00:06:19]}
{[%emt 00:00:28]} Rce8+ {[%clk 00:20:20]} {[%emt 00:01:20]} 28. Kf2 {[%clk
00:06:41]} {[%emt 00:00:06]} Re2+ {[%clk 00:20:18]} {[%emt 00:00:33]} 29. Kg3
{[%clk 00:06:47]} {[%emt 00:00:25]} Nxd4 {[%clk 00:16:48]} {[%emt 00:04:00]} 30.
Qxd4 {[%clk 00:07:07]} {[%emt 00:00:10]} Qe7 {[%clk 00:16:16]} {[%emt
00:01:01]} 31. h4 {[%clk 00:06:25]} {[%emt 00:01:13]} Re3 {[%clk 00:13:00]}
{[%emt 00:03:46]} 32. Rd2 {[%clk 00:04:12]} {[%emt 00:02:43]} Re8 {[%clk
00:09:52]} {[%emt 00:03:38]} 33. Be4 {[%clk 00:02:54]} {[%emt 00:01:48]} Qd6+
{[%clk 00:09:59]} {[%emt 00:00:22]} 34. Kg4 {[%clk 00:01:32]} {[%emt 00:01:53]}
R8xe4+ {[%clk 00:10:04]} {[%emt 00:00:25]} 35. fxe4 {[%clk 00:00:49]} {[%emt
00:01:13]} Qg3+ {[%clk 00:10:25]} {[%emt 00:00:08]} 36. Kh5 {[%clk 00:01:16]}
{[%emt 00:00:03]} Qf3# {[%emt 00:00:04]} 0-1

[Event "Mitropa Cup 2023 Open selection"]
[Site "Mali Losinj, Croatia"]
[Date "2023.04.11"]
[Round "1.20"]
[White "Lumachi, Gabriele"]
[Black "Balint, Peter"]
[Result "1-0"]
[TimeControl "90 min + 30 min after 40 moves + 30 sec increment from move 1"]
[WhiteElo "2357"]
[BlackElo "2217"]

1. Nf3 {[%clk 01:30:47]} {[%emt 00:00:11]} Nf6 {[%clk 01:30:37]} {[%emt
00:00:24]} 2. c4 {[%clk 01:30:51]} {[%emt 00:00:25]} g6 {[%clk 01:30:47]}
{[%emt 00:00:21]} 3. Nc3 {[%clk 01:31:12]} {[%emt 00:00:09]} d5 {[%clk
01:31:07]} {[%emt 00:00:10]} 4. cxd5 {[%clk 01:31:32]} {[%emt 00:00:10]} Nxd5
{[%clk 01:31:27]} {[%emt 00:00:11]} 5. e4 {[%clk 01:31:53]} {[%emt 00:00:08]}
Nxc3 {[%clk 01:31:35]} {[%emt 00:00:23]} 6. bxc3 {[%clk 01:32:11]} {[%emt
00:00:11]} Bg7 {[%clk 01:25:26]} {[%emt 00:06:40]} 7. Rb1 {[%clk 01:32:28]}
{[%emt 00:00:13]} c5 {[%clk 01:22:35]} {[%emt 00:03:21]} 8. Bb5+ {[%clk
01:20:14]} {[%emt 00:12:43]} Nc6 {[%clk 01:00:39]} {[%emt 00:22:26]} 9. Ba3
{[%clk 01:18:10]} {[%emt 00:02:35]} a6 {[%clk 00:46:53]} {[%emt 00:14:16]} 10.
Bxc6+ {[%clk 01:11:01]} {[%emt 00:07:39]} bxc6 {[%clk 00:47:06]} {[%emt
00:00:17]} 11. Bxc5 {[%clk 00:51:27]} {[%emt 00:20:04]} Qd3 {[%clk 00:47:16]}
{[%emt 00:00:21]} 12. Rb6 {[%clk 00:29:32]} {[%emt 00:22:24]} Be6 {[%clk
00:26:33]} {[%emt 00:21:12]} 13. Qe2 {[%clk 00:28:02]} {[%emt 00:02:00]} Bc4
{[%clk 00:26:35]} {[%emt 00:00:29]} 14. Qxd3 {[%clk 00:25:00]} {[%emt
00:03:32]} Bxd3 {[%clk 00:27:01]} {[%emt 00:00:04]} 15. Nd4 {[%clk 00:23:22]}
{[%emt 00:02:07]} Bxe4 {[%clk 00:10:40]} {[%emt 00:16:52]} 16. O-O {[%clk
00:23:39]} {[%emt 00:00:13]} Bd5 {[%clk 00:03:57]} {[%emt 00:07:14]} 17. a4
{[%clk 00:15:59]} {[%emt 00:08:09]} O-O {[%clk 00:01:12]} {[%emt 00:03:15]} 18.
Nxc6 {[%clk 00:16:05]} {[%emt 00:00:23]} Bxc6 {[%clk 00:01:13]} {[%emt
00:00:30]} 19. Rxc6 {[%clk 00:16:29]} {[%emt 00:00:05]} Rfd8 {[%clk 00:01:38]}
{[%emt 00:00:06]} 20. Be3 {[%clk 00:15:25]} {[%emt 00:01:34]} Rdb8 {[%clk
00:00:51]} {[%emt 00:01:17]} 21. a5 {[%clk 00:12:08]} {[%emt 00:03:47]} Rb2
{[%clk 00:00:59]} {[%emt 00:00:22]} 22. Ra1 {[%clk 00:12:09]} {[%emt 00:00:28]}
h5 {[%clk 00:00:50]} {[%emt 00:00:40]} 23. Rb6 {[%clk 00:11:37]} {[%emt
00:01:02]} Rc2 {[%clk 00:00:48]} {[%emt 00:00:32]} 24. Kf1 {[%clk 00:10:44]}
{[%emt 00:01:22]} Be5 {[%clk 00:00:45]} {[%emt 00:00:33]} 25. g3 {[%clk
00:07:35]} {[%emt 00:03:40]} h4 {[%clk 00:00:35]} {[%emt 00:00:40]} 26. gxh4
{[%clk 00:07:51]} {[%emt 00:00:14]} Kg7 {[%clk 00:00:55]} {[%emt 00:00:10]} 27.
Rb3 {[%clk 00:06:17]} {[%emt 00:02:03]} Rd8 {[%clk 00:00:41]} {[%emt 00:00:44]}
28. Ke2 {[%clk 00:04:08]} {[%emt 00:02:40]} Bf6 {[%clk 00:00:38]} {[%emt
00:00:34]} 29. Ra4 {[%clk 00:03:34]} {[%emt 00:01:03]} Rc1 {[%clk 00:00:47]}
{[%emt 00:00:21]} 30. Rb6 {[%clk 00:03:32]} {[%emt 00:00:31]} Ra8 {[%clk
00:01:04]} {[%emt 00:00:14]} 31. Kf3 {[%clk 00:03:13]} {[%emt 00:00:49]} Rh1
{[%clk 00:00:40]} {[%emt 00:00:54]} 32. Kg2 {[%clk 00:03:26]} {[%emt 00:00:17]}
Rc1 {[%clk 00:00:59]} {[%emt 00:00:11]} 33. Rc6 {[%clk 00:02:28]} {[%emt
00:01:28]} Rc2 {[%clk 00:00:54]} {[%emt 00:00:35]} 34. Kf3 {[%clk 00:00:48]}
{[%emt 00:02:09]} Rc1 {[%clk 00:01:00]} {[%emt 00:00:25]} 35. Rg4 {[%clk
00:00:39]} {[%emt 00:00:38]} Ra1 {[%clk 00:01:20]} {[%emt 00:00:11]} 36. Rc5
{[%clk 00:00:56]} {[%emt 00:00:13]} Rh8 {[%clk 00:01:02]} {[%emt 00:00:48]} 37.
h5 {[%clk 00:01:21]} {[%emt 00:00:05]} Rd8 {[%clk 00:01:10]} {[%emt 00:00:22]}
38. h4 {[%clk 00:01:25]} {[%emt 00:00:26]} Kh7 {[%clk 00:00:41]} {[%emt
00:00:59]} 39. hxg6+ {[%clk 00:01:26]} {[%emt 00:00:29]} fxg6 {[%clk 00:01:02]}
{[%emt 00:00:09]} 40. h5 {[%clk 00:31:50]} {[%emt 00:00:06]} g5 {[%clk
00:30:32]} {[%emt 00:01:00]} 41. d4 {[%clk 00:18:06]} {[%emt 00:14:14]} Ra3
{[%clk 00:26:47]} {[%emt 00:04:15]} 42. Kg2 {[%clk 00:14:58]} {[%emt 00:03:38]}
Rd6 {[%clk 00:22:11]} {[%emt 00:05:06]} 43. Bxg5 {[%clk 00:14:16]} {[%emt
00:01:12]} Bxg5 {[%clk 00:21:21]} {[%emt 00:01:19]} 44. Rgxg5 {[%clk 00:14:17]}
{[%emt 00:00:30]} Rf6 {[%clk 00:21:45]} {[%emt 00:00:06]} 45. Rg3 {[%clk
00:14:09]} {[%emt 00:00:37]} Rf7 {[%clk 00:20:27]} {[%emt 00:01:49]} 46. Rcg5
{[%clk 00:11:41]} {[%emt 00:02:58]} e6 {[%clk 00:15:58]} {[%emt 00:04:59]} 47.
Re3 {[%clk 00:07:49]} {[%emt 00:04:21]} Rf6 {[%clk 00:14:12]} {[%emt 00:02:17]}
48. Rge5 {[%clk 00:06:18]} {[%emt 00:02:01]} Ra2 {[%clk 00:11:53]} {[%emt
00:02:48]} 49. Rf3 {[%clk 00:05:52]} {[%emt 00:00:56]} Rh6 {[%clk 00:12:07]}
{[%emt 00:00:17]} 50. Rg5 {[%clk 00:05:36]} {[%emt 00:00:45]} Rc2 {[%clk
00:11:16]} {[%emt 00:01:23]} 51. Rf7+ {[%clk 00:05:31]} {[%emt 00:00:34]} Kh8
{[%clk 00:11:30]} {[%emt 00:00:16]} 52. Rc5 {[%clk 00:05:14]} {[%emt 00:00:47]}
1-0